Workbook

Sheet Orçamento de Casamento
B2: EMÍLIA + BRUNO DAR O NÓ
B5: CATEGORIA | C5: CUSTO ESTIMADO | D5: CUSTOS REAIS | E5: DESVIO | F5: % DO ORÇAMENTO | J5: Não ordenado | K5: Custos Estimados | L5: Custos Reais | M5: Custo Estimado – Valor de Classificação | N5: Classificação | O5: N.º | P5: Ordenação
B6: =P6 -> Copo-d'água | C6: =VLOOKUP(TBL_Resumo[[#This Row],[CATEGORIA]],TBL_RankingData,2,FALSE) -> 14,500 € | D6: =IF(VLOOKUP(TBL_Resumo[[#This Row],[CATEGORIA]],TBL_RankingData,3,FALSE)=0,"",VLOOKUP(TBL_Resumo[[#This Row],[CATEGORIA]],TBL_RankingData,3,FALSE)) -> 12,800 € | E6: =IF(OR(TBL_Resumo[[#This Row],[CUSTO ESTIMADO]]="",TBL_Resumo[[#This Row],[CUSTOS REAIS]]=""),"",TBL_Resumo[[#This Row],[CUSTO ESTIMADO]]-TBL_Resumo[[#This Row],[CUSTOS REAIS]]) -> 1,700 € | F6: =TBL_Resumo[[#This Row],[CUSTO ESTIMADO]]/SUM(TBL_Resumo[CUSTO ESTIMADO]) -> 48.7% | J6: Copo-d'água | K6: =TBL_CopoDeÁgua[[#Totals],[ESTIMATIVA]] -> 14500 | L6: =TBL_CopoDeÁgua[[#Totals],[REAL]] -> 12800 | M6: =K6-O6/100 -> 14499.99 | N6: =_xlfn.RANK.AVG(M6,$M$6:$M$15) -> 1 | O6: 1 | P6: =INDEX(TBL_RankingData,MATCH(O6,$N$6:$N$15,0),1) -> Copo-d'água
B7: =P7 -> Vestuário | C7: =VLOOKUP(TBL_Resumo[[#This Row],[CATEGORIA]],TBL_RankingData,2,FALSE) -> 4,000 € | D7: =IF(VLOOKUP(TBL_Resumo[[#This Row],[CATEGORIA]],TBL_RankingData,3,FALSE)=0,"",VLOOKUP(TBL_Resumo[[#This Row],[CATEGORIA]],TBL_RankingData,3,FALSE)) -> 2,900 € | E7: =IF(OR(TBL_Resumo[[#This Row],[CUSTO ESTIMADO]]="",TBL_Resumo[[#This Row],[CUSTOS REAIS]]=""),"",TBL_Resumo[[#This Row],[CUSTO ESTIMADO]]-TBL_Resumo[[#This Row],[CUSTOS REAIS]]) -> 1,100 € | F7: =TBL_Resumo[[#This Row],[CUSTO ESTIMADO]]/SUM(TBL_Resumo[CUSTO ESTIMADO]) -> 13.4% | J7: Vestuário | K7: =TBL_Vestuário[[#Totals],[ESTIMATIVA]] -> 4000 | L7: =TBL_Vestuário[[#Totals],[REAL]] -> 2900 | M7: =K7-O7/100 -> 3999.98 | N7: 2 | O7: 2 | P7: Vestuário
B8: Flores e decorações | C8: =VLOOKUP(TBL_Resumo[[#This Row],[CATEGORIA]],TBL_RankingData,2,FALSE) -> 3,000 € | D8: =IF(VLOOKUP(TBL_Resumo[[#This Row],[CATEGORIA]],TBL_RankingData,3,FALSE)=0,"",VLOOKUP(TBL_Resumo[[#This Row],[CATEGORIA]],TBL_RankingData,3,FALSE)) ->  | E8: =IF(OR(TBL_Resumo[[#This Row],[CUSTO ESTIMADO]]="",TBL_Resumo[[#This Row],[CUSTOS REAIS]]=""),"",TBL_Resumo[[#This Row],[CUSTO ESTIMADO]]-TBL_Resumo[[#This Row],[CUSTOS REAIS]]) ->  | F8: =TBL_Resumo[[#This Row],[CUSTO ESTIMADO]]/SUM(TBL_Resumo[CUSTO ESTIMADO]) -> 10.1% | J8: Flores e decorações | K8: =TBL_FloresEDecoração[[#Totals],[ESTIMATIVA]] -> 3000 | L8: =TBL_FloresEDecoração[[#Totals],[REAL]] -> 0 | M8: 2999.97 | N8: 3 | O8: 3 | P8: Flores e decorações
B9: Fotografias e vídeo | C9: =VLOOKUP(TBL_Resumo[[#This Row],[CATEGORIA]],TBL_RankingData,2,FALSE) -> 2,500 € | D9: =IF(VLOOKUP(TBL_Resumo[[#This Row],[CATEGORIA]],TBL_RankingData,3,FALSE)=0,"",VLOOKUP(TBL_Resumo[[#This Row],[CATEGORIA]],TBL_RankingData,3,FALSE)) ->  | E9: =IF(OR(TBL_Resumo[[#This Row],[CUSTO ESTIMADO]]="",TBL_Resumo[[#This Row],[CUSTOS REAIS]]=""),"",TBL_Resumo[[#This Row],[CUSTO ESTIMADO]]-TBL_Resumo[[#This Row],[CUSTOS REAIS]]) ->  | F9: =TBL_Resumo[[#This Row],[CUSTO ESTIMADO]]/SUM(TBL_Resumo[CUSTO ESTIMADO]) -> 8.4% | J9: Música | K9: =TBL_Música[[#Totals],[ESTIMATIVA]] -> 1800 | L9: =TBL_Música[[#Totals],[REAL]] -> 0 | M9: 1799.96 | N9: 5 | O9: 4 | P9: Fotografias e vídeo
B10: Música | C10: =VLOOKUP(TBL_Resumo[[#This Row],[CATEGORIA]],TBL_RankingData,2,FALSE) -> 1,800 € | D10: =IF(VLOOKUP(TBL_Resumo[[#This Row],[CATEGORIA]],TBL_RankingData,3,FALSE)=0,"",VLOOKUP(TBL_Resumo[[#This Row],[CATEGORIA]],TBL_RankingData,3,FALSE)) ->  | E10: =IF(OR(TBL_Resumo[[#This Row],[CUSTO ESTIMADO]]="",TBL_Resumo[[#This Row],[CUSTOS REAIS]]=""),"",TBL_Resumo[[#This Row],[CUSTO ESTIMADO]]-TBL_Resumo[[#This Row],[CUSTOS REAIS]]) ->  | F10: =TBL_Resumo[[#This Row],[CUSTO ESTIMADO]]/SUM(TBL_Resumo[CUSTO ESTIMADO]) -> 6.1% | J10: Fotografias e vídeo | K10: =TBL_FotografiasEVídeo[[#Totals],[ESTIMATIVA]] -> 2500 | L10: =TBL_FotografiasEVídeo[[#Totals],[REAL]] -> 0 | M10: 2499.95 | N10: 4 | O10: 5 | P10: Música
B11: Lembranças e presentes | C11: =VLOOKUP(TBL_Resumo[[#This Row],[CATEGORIA]],TBL_RankingData,2,FALSE) -> 1,100 € | D11: =IF(VLOOKUP(TBL_Resumo[[#This Row],[CATEGORIA]],TBL_RankingData,3,FALSE)=0,"",VLOOKUP(TBL_Resumo[[#This Row],[CATEGORIA]],TBL_RankingData,3,FALSE)) ->  | E11: =IF(OR(TBL_Resumo[[#This Row],[CUSTO ESTIMADO]]="",TBL_Resumo[[#This Row],[CUSTOS REAIS]]=""),"",TBL_Resumo[[#This Row],[CUSTO ESTIMADO]]-TBL_Resumo[[#This Row],[CUSTOS REAIS]]) ->  | F11: =TBL_Resumo[[#This Row],[CUSTO ESTIMADO]]/SUM(TBL_Resumo[CUSTO ESTIMADO]) -> 3.7% | J11: Lembranças e presentes | K11: =TBL_LembrançasEPresentes[[#Totals],[ESTIMATIVA]] -> 1100 | L11: =TBL_LembrançasEPresentes[[#Totals],[REAL]] -> 0 | M11: 1099.94 | N11: 6 | O11: 6 | P11: Lembranças e presentes
B12: =P12 -> Alianças | C12: =VLOOKUP(TBL_Resumo[[#This Row],[CATEGORIA]],TBL_RankingData,2,FALSE) -> 1,100 € | D12: =IF(VLOOKUP(TBL_Resumo[[#This Row],[CATEGORIA]],TBL_RankingData,3,FALSE)=0,"",VLOOKUP(TBL_Resumo[[#This Row],[CATEGORIA]],TBL_RankingData,3,FALSE)) ->  | E12: =IF(OR(TBL_Resumo[[#This Row],[CUSTO ESTIMADO]]="",TBL_Resumo[[#This Row],[CUSTOS REAIS]]=""),"",TBL_Resumo[[#This Row],[CUSTO ESTIMADO]]-TBL_Resumo[[#This Row],[CUSTOS REAIS]]) ->  | F12: =TBL_Resumo[[#This Row],[CUSTO ESTIMADO]]/SUM(TBL_Resumo[CUSTO ESTIMADO]) -> 3.7% | J12: Cerimónia | K12: =TBL_Cerimónia[[#Totals],[ESTIMATIVA]] -> 800 | L12: =TBL_Cerimónia[[#Totals],[REAL]] -> 0 | M12: 799.93 | N12: 8 | O12: 7 | P12: Alianças
B13: Cerimónia | C13: =VLOOKUP(TBL_Resumo[[#This Row],[CATEGORIA]],TBL_RankingData,2,FALSE) -> 800 € | D13: =IF(VLOOKUP(TBL_Resumo[[#This Row],[CATEGORIA]],TBL_RankingData,3,FALSE)=0,"",VLOOKUP(TBL_Resumo[[#This Row],[CATEGORIA]],TBL_RankingData,3,FALSE)) ->  | E13: =IF(OR(TBL_Resumo[[#This Row],[CUSTO ESTIMADO]]="",TBL_Resumo[[#This Row],[CUSTOS REAIS]]=""),"",TBL_Resumo[[#This Row],[CUSTO ESTIMADO]]-TBL_Resumo[[#This Row],[CUSTOS REAIS]]) ->  | F13: =TBL_Resumo[[#This Row],[CUSTO ESTIMADO]]/SUM(TBL_Resumo[CUSTO ESTIMADO]) -> 2.7% | J13: Artigos de Papelaria | K13: =TBL_ArtigosDePapelaria[[#Totals],[ESTIMATIVA]] -> 500 | L13: =TBL_ArtigosDePapelaria[[#Totals],[REAL]] -> 0 | M13: 499.92 | N13: 9 | O13: 8 | P13: Cerimónia
B14: Artigos de Papelaria | C14: =VLOOKUP(TBL_Resumo[[#This Row],[CATEGORIA]],TBL_RankingData,2,FALSE) -> 500 € | D14: =IF(VLOOKUP(TBL_Resumo[[#This Row],[CATEGORIA]],TBL_RankingData,3,FALSE)=0,"",VLOOKUP(TBL_Resumo[[#This Row],[CATEGORIA]],TBL_RankingData,3,FALSE)) ->  | E14: =IF(OR(TBL_Resumo[[#This Row],[CUSTO ESTIMADO]]="",TBL_Resumo[[#This Row],[CUSTOS REAIS]]=""),"",TBL_Resumo[[#This Row],[CUSTO ESTIMADO]]-TBL_Resumo[[#This Row],[CUSTOS REAIS]]) ->  | F14: =TBL_Resumo[[#This Row],[CUSTO ESTIMADO]]/SUM(TBL_Resumo[CUSTO ESTIMADO]) -> 1.7% | J14: Alianças | K14: =TBL_Alianças[[#Totals],[ESTIMATIVA]] -> 1100 | L14: =TBL_Alianças[[#Totals],[REAL]] -> 0 | M14: 1099.91 | N14: 7 | O14: 9 | P14: Artigos de Papelaria
B15: Transportes | C15: =VLOOKUP(TBL_Resumo[[#This Row],[CATEGORIA]],TBL_RankingData,2,FALSE) -> 450 € | D15: =IF(VLOOKUP(TBL_Resumo[[#This Row],[CATEGORIA]],TBL_RankingData,3,FALSE)=0,"",VLOOKUP(TBL_Resumo[[#This Row],[CATEGORIA]],TBL_RankingData,3,FALSE)) ->  | E15: =IF(OR(TBL_Resumo[[#This Row],[CUSTO ESTIMADO]]="",TBL_Resumo[[#This Row],[CUSTOS REAIS]]=""),"",TBL_Resumo[[#This Row],[CUSTO ESTIMADO]]-TBL_Resumo[[#This Row],[CUSTOS REAIS]]) ->  | F15: =TBL_Resumo[[#This Row],[CUSTO ESTIMADO]]/SUM(TBL_Resumo[CUSTO ESTIMADO]) -> 1.5% | J15: Transportes | K15: =TBL_Transporte[[#Totals],[ESTIMATIVA]] -> 450 | L15: =TBL_Transporte[[#Totals],[REAL]] -> 0 | M15: 449.9 | N15: 10 | O15: 10 | P15: Transportes
B16: Total | C16: =SUBTOTAL(109,TBL_Resumo[CUSTO ESTIMADO]) -> 29,750 € | D16: =SUBTOTAL(109,TBL_Resumo[CUSTOS REAIS]) -> 15,700 € | E16: =TBL_Resumo[[#Totals],[CUSTO ESTIMADO]]-TBL_Resumo[[#Totals],[CUSTOS REAIS]] -> 14,050 € | F16: =SUBTOTAL(109,TBL_Resumo[% DO ORÇAMENTO]) -> 100%

Sheet Detalhes do Orçamento
B2: DETALHES DO ORÇAMENTO
B4: COPO DE ÁGUA | C4: ESTIMATIVA | D4: REAL | E4: DESVIO
B5: Local e alugueres | C5: 8,000.00 € | D5: 7,800.00 € | E5: =IF(OR(TBL_CopoDeÁgua[[#This Row],[ESTIMATIVA]]="",TBL_CopoDeÁgua[[#This Row],[REAL]]=""),"",TBL_CopoDeÁgua[[#This Row],[ESTIMATIVA]]-TBL_CopoDeÁgua[[#This Row],[REAL]]) -> 200.00 €
B6: Comida e serviço | C6: 4,000.00 € | D6: 4,200.00 € | E6: =IF(OR(TBL_CopoDeÁgua[[#This Row],[ESTIMATIVA]]="",TBL_CopoDeÁgua[[#This Row],[REAL]]=""),"",TBL_CopoDeÁgua[[#This Row],[ESTIMATIVA]]-TBL_CopoDeÁgua[[#This Row],[REAL]]) -> -200.00 €
B7: Bebidas | C7: 1,000.00 € | D7: 800.00 € | E7: =IF(OR(TBL_CopoDeÁgua[[#This Row],[ESTIMATIVA]]="",TBL_CopoDeÁgua[[#This Row],[REAL]]=""),"",TBL_CopoDeÁgua[[#This Row],[ESTIMATIVA]]-TBL_CopoDeÁgua[[#This Row],[REAL]]) -> 200.00 €
B8: Bolo | C8: 1,000.00 € | E8: =IF(OR(TBL_CopoDeÁgua[[#This Row],[ESTIMATIVA]]="",TBL_CopoDeÁgua[[#This Row],[REAL]]=""),"",TBL_CopoDeÁgua[[#This Row],[ESTIMATIVA]]-TBL_CopoDeÁgua[[#This Row],[REAL]]) -> 
B9: Taxas diversas | C9: 500.00 € | E9: =IF(OR(TBL_CopoDeÁgua[[#This Row],[ESTIMATIVA]]="",TBL_CopoDeÁgua[[#This Row],[REAL]]=""),"",TBL_CopoDeÁgua[[#This Row],[ESTIMATIVA]]-TBL_CopoDeÁgua[[#This Row],[REAL]]) -> 
B10: TOTAL DE COPO-D'ÁGUA | C10: =SUBTOTAL(109,TBL_CopoDeÁgua[ESTIMATIVA]) -> 14,500.00 € | D10: =SUBTOTAL(109,TBL_CopoDeÁgua[REAL]) -> 12,800.00 € | E10: =TBL_CopoDeÁgua[[#Totals],[ESTIMATIVA]]-TBL_CopoDeÁgua[[#Totals],[REAL]] -> 1,700.00 €
B13: VESTUÁRIO | C13: ESTIMATIVA | D13: REAL | E13: DESVIO
B14: Smoking, fato e/ou vestidos | C14: 3,000.00 € | D14: 2,900.00 € | E14: =IF(OR(TBL_Vestuário[[#This Row],[ESTIMATIVA]]="",TBL_Vestuário[[#This Row],[REAL]]=""),"",TBL_Vestuário[[#This Row],[ESTIMATIVA]]-TBL_Vestuário[[#This Row],[REAL]]) -> 100.00 €
B15: Alterações | C15: 100.00 € | E15: =IF(OR(TBL_Vestuário[[#This Row],[ESTIMATIVA]]="",TBL_Vestuário[[#This Row],[REAL]]=""),"",TBL_Vestuário[[#This Row],[ESTIMATIVA]]-TBL_Vestuário[[#This Row],[REAL]]) -> 
B16: Véu e grinalda | C16: 200.00 € | E16: =IF(OR(TBL_Vestuário[[#This Row],[ESTIMATIVA]]="",TBL_Vestuário[[#This Row],[REAL]]=""),"",TBL_Vestuário[[#This Row],[ESTIMATIVA]]-TBL_Vestuário[[#This Row],[REAL]]) -> 
B17: Acessórios | C17: 100.00 € | E17: =IF(OR(TBL_Vestuário[[#This Row],[ESTIMATIVA]]="",TBL_Vestuário[[#This Row],[REAL]]=""),"",TBL_Vestuário[[#This Row],[ESTIMATIVA]]-TBL_Vestuário[[#This Row],[REAL]]) -> 
B18: Cabelo e maquilhagem | C18: 500.00 € | E18: =IF(OR(TBL_Vestuário[[#This Row],[ESTIMATIVA]]="",TBL_Vestuário[[#This Row],[REAL]]=""),"",TBL_Vestuário[[#This Row],[ESTIMATIVA]]-TBL_Vestuário[[#This Row],[REAL]]) -> 
B19: Taxas diversas | C19: 100.00 € | E19: =IF(OR(TBL_Vestuário[[#This Row],[ESTIMATIVA]]="",TBL_Vestuário[[#This Row],[REAL]]=""),"",TBL_Vestuário[[#This Row],[ESTIMATIVA]]-TBL_Vestuário[[#This Row],[REAL]]) -> 
B20: TOTAL DE VESTUÁRIO | C20: =SUBTOTAL(109,TBL_Vestuário[ESTIMATIVA]) -> 4,000.00 € | D20: =SUBTOTAL(109,TBL_Vestuário[REAL]) -> 2,900.00 € | E20: =TBL_Vestuário[[#Totals],[ESTIMATIVA]]-TBL_Vestuário[[#Totals],[REAL]] -> 1,100.00 €
B23: FLORES E DECORAÇÕES | C23: ESTIMATIVA | D23: REAL | E23: DESVIO
B24: Arranjos florais para a cerimónia | C24: 1,000.00 € | E24: =IF(OR(TBL_FloresEDecoração[[#This Row],[ESTIMATIVA]]="",TBL_FloresEDecoração[[#This Row],[REAL]]=""),"",TBL_FloresEDecoração[[#This Row],[ESTIMATIVA]]-TBL_FloresEDecoração[[#This Row],[REAL]]) -> 
B25: Botões e cesto da menina das flores | C25: 500.00 € | E25: =IF(OR(TBL_FloresEDecoração[[#This Row],[ESTIMATIVA]]="",TBL_FloresEDecoração[[#This Row],[REAL]]=""),"",TBL_FloresEDecoração[[#This Row],[ESTIMATIVA]]-TBL_FloresEDecoração[[#This Row],[REAL]]) -> 
B26: Almofada para alianças | C26: 100.00 € | E26: =IF(OR(TBL_FloresEDecoração[[#This Row],[ESTIMATIVA]]="",TBL_FloresEDecoração[[#This Row],[REAL]]=""),"",TBL_FloresEDecoração[[#This Row],[ESTIMATIVA]]-TBL_FloresEDecoração[[#This Row],[REAL]]) -> 
B27: Bouquets | C27: 500.00 € | E27: =IF(OR(TBL_FloresEDecoração[[#This Row],[ESTIMATIVA]]="",TBL_FloresEDecoração[[#This Row],[REAL]]=""),"",TBL_FloresEDecoração[[#This Row],[ESTIMATIVA]]-TBL_FloresEDecoração[[#This Row],[REAL]]) -> 
B28: Flores de Lapela | C28: 100.00 € | E28: =IF(OR(TBL_FloresEDecoração[[#This Row],[ESTIMATIVA]]="",TBL_FloresEDecoração[[#This Row],[REAL]]=""),"",TBL_FloresEDecoração[[#This Row],[ESTIMATIVA]]-TBL_FloresEDecoração[[#This Row],[REAL]]) -> 
B29: Ramalhetes (Acessório) | C29: 200.00 € | E29: =IF(OR(TBL_FloresEDecoração[[#This Row],[ESTIMATIVA]]="",TBL_FloresEDecoração[[#This Row],[REAL]]=""),"",TBL_FloresEDecoração[[#This Row],[ESTIMATIVA]]-TBL_FloresEDecoração[[#This Row],[REAL]]) -> 
B30: Decorações do copo-de-água | C30: 300.00 € | E30: =IF(OR(TBL_FloresEDecoração[[#This Row],[ESTIMATIVA]]="",TBL_FloresEDecoração[[#This Row],[REAL]]=""),"",TBL_FloresEDecoração[[#This Row],[ESTIMATIVA]]-TBL_FloresEDecoração[[#This Row],[REAL]]) -> 
B31: Iluminação | C31: 200.00 € | E31: =IF(OR(TBL_FloresEDecoração[[#This Row],[ESTIMATIVA]]="",TBL_FloresEDecoração[[#This Row],[REAL]]=""),"",TBL_FloresEDecoração[[#This Row],[ESTIMATIVA]]-TBL_FloresEDecoração[[#This Row],[REAL]]) -> 
B32: Taxas diversas | C32: 100.00 € | E32: =IF(OR(TBL_FloresEDecoração[[#This Row],[ESTIMATIVA]]="",TBL_FloresEDecoração[[#This Row],[REAL]]=""),"",TBL_FloresEDecoração[[#This Row],[ESTIMATIVA]]-TBL_FloresEDecoração[[#This Row],[REAL]]) -> 
B33: TOTAL DE FLORES E DECORAÇÕES | C33: =SUBTOTAL(109,TBL_FloresEDecoração[ESTIMATIVA]) -> 3,000.00 € | D33: =SUBTOTAL(109,TBL_FloresEDecoração[REAL]) -> 0.00 € | E33: =TBL_FloresEDecoração[[#Totals],[ESTIMATIVA]]-TBL_FloresEDecoração[[#Totals],[REAL]] -> 3,000.00 €
B36: MÚSICA | C36: ESTIMATIVA | D36: REAL | E36: DESVIO
B37: Músicos para a cerimônia | C37: 700.00 € | E37: =IF(OR(TBL_Música[[#This Row],[ESTIMATIVA]]="",TBL_Música[[#This Row],[REAL]]=""),"",TBL_Música[[#This Row],[ESTIMATIVA]]-TBL_Música[[#This Row],[REAL]]) -> 
B38: Músicos para a hora de cocktails | C38: 300.00 € | E38: =IF(OR(TBL_Música[[#This Row],[ESTIMATIVA]]="",TBL_Música[[#This Row],[REAL]]=""),"",TBL_Música[[#This Row],[ESTIMATIVA]]-TBL_Música[[#This Row],[REAL]]) -> 
B39: Banda para o copo-de-água, DJ ou animação | C39: 200.00 € | E39: =IF(OR(TBL_Música[[#This Row],[ESTIMATIVA]]="",TBL_Música[[#This Row],[REAL]]=""),"",TBL_Música[[#This Row],[ESTIMATIVA]]-TBL_Música[[#This Row],[REAL]]) -> 
B40: Aluguer de sistema de som ou de pista de dança | C40: 400.00 € | E40: =IF(OR(TBL_Música[[#This Row],[ESTIMATIVA]]="",TBL_Música[[#This Row],[REAL]]=""),"",TBL_Música[[#This Row],[ESTIMATIVA]]-TBL_Música[[#This Row],[REAL]]) -> 
B41: Taxas diversas | C41: 200.00 € | E41: =IF(OR(TBL_Música[[#This Row],[ESTIMATIVA]]="",TBL_Música[[#This Row],[REAL]]=""),"",TBL_Música[[#This Row],[ESTIMATIVA]]-TBL_Música[[#This Row],[REAL]]) -> 
B42: TOTAL DE MÚSICA | C42: =SUBTOTAL(109,TBL_Música[ESTIMATIVA]) -> 1,800.00 € | D42: =SUBTOTAL(109,TBL_Música[REAL]) -> 0.00 € | E42: =TBL_Música[[#Totals],[ESTIMATIVA]]-TBL_Música[[#Totals],[REAL]] -> 1,800.00 €
B45: FOTOGRAFIAS E VÍDEO | C45: ESTIMATIVA | D45: REAL | E45: DESVIO
B46: Fotografia | C46: 1,000.00 € | E46: =IF(OR(TBL_FotografiasEVídeo[[#This Row],[ESTIMATIVA]]="",TBL_FotografiasEVídeo[[#This Row],[REAL]]=""),"",TBL_FotografiasEVídeo[[#This Row],[ESTIMATIVA]]-TBL_FotografiasEVídeo[[#This Row],[REAL]]) -> 
B47: Vídeos | C47: 800.00 € | E47: =IF(OR(TBL_FotografiasEVídeo[[#This Row],[ESTIMATIVA]]="",TBL_FotografiasEVídeo[[#This Row],[REAL]]=""),"",TBL_FotografiasEVídeo[[#This Row],[ESTIMATIVA]]-TBL_FotografiasEVídeo[[#This Row],[REAL]]) -> 
B48: Impressão e álbuns adicionais | C48: 500.00 € | E48: =IF(OR(TBL_FotografiasEVídeo[[#This Row],[ESTIMATIVA]]="",TBL_FotografiasEVídeo[[#This Row],[REAL]]=""),"",TBL_FotografiasEVídeo[[#This Row],[ESTIMATIVA]]-TBL_FotografiasEVídeo[[#This Row],[REAL]]) -> 
B49: Taxas diversas | C49: 200.00 € | E49: =IF(OR(TBL_FotografiasEVídeo[[#This Row],[ESTIMATIVA]]="",TBL_FotografiasEVídeo[[#This Row],[REAL]]=""),"",TBL_FotografiasEVídeo[[#This Row],[ESTIMATIVA]]-TBL_FotografiasEVídeo[[#This Row],[REAL]]) -> 
B50: TOTAL DE FOTOGRAFIA E VÍDEO | C50: =SUBTOTAL(109,TBL_FotografiasEVídeo[ESTIMATIVA]) -> 2,500.00 € | D50: =SUBTOTAL(109,TBL_FotografiasEVídeo[REAL]) -> 0.00 € | E50: =TBL_FotografiasEVídeo[[#Totals],[ESTIMATIVA]]-TBL_FotografiasEVídeo[[#Totals],[REAL]] -> 2,500.00 €
B53: LEMBRANÇAS E PRESENTES | C53: ESTIMATIVA | D53: REAL | E53: DESVIO
B54: Presentes de boas-vindas | C54: 700.00 € | E54: =IF(OR(TBL_LembrançasEPresentes[[#This Row],[ESTIMATIVA]]="",TBL_LembrançasEPresentes[[#This Row],[REAL]]=""),"",TBL_LembrançasEPresentes[[#This Row],[ESTIMATIVA]]-TBL_LembrançasEPresentes[[#This Row],[REAL]]) -> 
B55: Presentes para a festa | C55: 200.00 € | E55: =IF(OR(TBL_LembrançasEPresentes[[#This Row],[ESTIMATIVA]]="",TBL_LembrançasEPresentes[[#This Row],[REAL]]=""),"",TBL_LembrançasEPresentes[[#This Row],[ESTIMATIVA]]-TBL_LembrançasEPresentes[[#This Row],[REAL]]) -> 
B56: Taxas diversas | C56: 200.00 € | E56: =IF(OR(TBL_LembrançasEPresentes[[#This Row],[ESTIMATIVA]]="",TBL_LembrançasEPresentes[[#This Row],[REAL]]=""),"",TBL_LembrançasEPresentes[[#This Row],[ESTIMATIVA]]-TBL_LembrançasEPresentes[[#This Row],[REAL]]) -> 
B57: TOTAL DE LEMBRANÇAS E PRESENTES | C57: =SUBTOTAL(109,TBL_LembrançasEPresentes[ESTIMATIVA]) -> 1,100.00 € | D57: =SUBTOTAL(109,TBL_LembrançasEPresentes[REAL]) -> 0.00 € | E57: =TBL_LembrançasEPresentes[[#Totals],[ESTIMATIVA]]-TBL_LembrançasEPresentes[[#Totals],[REAL]] -> 1,100.00 €
B60: CERIMÓNIA | C60: ESTIMATIVA | D60: REAL | E60: DESVIO
B61: Taxa do local | C61: 500.00 € | E61: =IF(OR(TBL_Cerimónia[[#This Row],[ESTIMATIVA]]="",TBL_Cerimónia[[#This Row],[REAL]]=""),"",TBL_Cerimónia[[#This Row],[ESTIMATIVA]]-TBL_Cerimónia[[#This Row],[REAL]]) -> 
B62: Taxa para o oficiante ou donativo à igreja | C62: 200.00 € | E62: =IF(OR(TBL_Cerimónia[[#This Row],[ESTIMATIVA]]="",TBL_Cerimónia[[#This Row],[REAL]]=""),"",TBL_Cerimónia[[#This Row],[ESTIMATIVA]]-TBL_Cerimónia[[#This Row],[REAL]]) -> 
B63: Taxas diversas | C63: 100.00 € | E63: =IF(OR(TBL_Cerimónia[[#This Row],[ESTIMATIVA]]="",TBL_Cerimónia[[#This Row],[REAL]]=""),"",TBL_Cerimónia[[#This Row],[ESTIMATIVA]]-TBL_Cerimónia[[#This Row],[REAL]]) -> 
B64: TOTAL DE CERIMÓNIA | C64: =SUBTOTAL(109,TBL_Cerimónia[ESTIMATIVA]) -> 800.00 € | D64: =SUBTOTAL(109,TBL_Cerimónia[REAL]) -> 0.00 € | E64: =TBL_Cerimónia[[#Totals],[ESTIMATIVA]]-TBL_Cerimónia[[#Totals],[REAL]] -> 800.00 €
B67: ARTIGOS DE PAPELARIA | C67: ESTIMATIVA | D67: REAL | E67: DESVIO
B68: Cartões de lembrete | C68: 50.00 € | E68: =IF(OR(TBL_ArtigosDePapelaria[[#This Row],[ESTIMATIVA]]="",TBL_ArtigosDePapelaria[[#This Row],[REAL]]=""),"",TBL_ArtigosDePapelaria[[#This Row],[ESTIMATIVA]]-TBL_ArtigosDePapelaria[[#This Row],[REAL]]) -> 
B69: Convites e confirmações de presença | C69: 100.00 € | E69: =IF(OR(TBL_ArtigosDePapelaria[[#This Row],[ESTIMATIVA]]="",TBL_ArtigosDePapelaria[[#This Row],[REAL]]=""),"",TBL_ArtigosDePapelaria[[#This Row],[ESTIMATIVA]]-TBL_ArtigosDePapelaria[[#This Row],[REAL]]) -> 
B70: Programas | C70: 50.00 € | E70: =IF(OR(TBL_ArtigosDePapelaria[[#This Row],[ESTIMATIVA]]="",TBL_ArtigosDePapelaria[[#This Row],[REAL]]=""),"",TBL_ArtigosDePapelaria[[#This Row],[ESTIMATIVA]]-TBL_ArtigosDePapelaria[[#This Row],[REAL]]) -> 
B71: Cartões de assentos e lugares | C71: 50.00 € | E71: =IF(OR(TBL_ArtigosDePapelaria[[#This Row],[ESTIMATIVA]]="",TBL_ArtigosDePapelaria[[#This Row],[REAL]]=""),"",TBL_ArtigosDePapelaria[[#This Row],[ESTIMATIVA]]-TBL_ArtigosDePapelaria[[#This Row],[REAL]]) -> 
B72: Menus | C72: 50.00 € | E72: =IF(OR(TBL_ArtigosDePapelaria[[#This Row],[ESTIMATIVA]]="",TBL_ArtigosDePapelaria[[#This Row],[REAL]]=""),"",TBL_ArtigosDePapelaria[[#This Row],[ESTIMATIVA]]-TBL_ArtigosDePapelaria[[#This Row],[REAL]]) -> 
B73: Notas de agradecimento | C73: 50.00 € | E73: =IF(OR(TBL_ArtigosDePapelaria[[#This Row],[ESTIMATIVA]]="",TBL_ArtigosDePapelaria[[#This Row],[REAL]]=""),"",TBL_ArtigosDePapelaria[[#This Row],[ESTIMATIVA]]-TBL_ArtigosDePapelaria[[#This Row],[REAL]]) -> 
B74: Correio | C74: 50.00 € | E74: =IF(OR(TBL_ArtigosDePapelaria[[#This Row],[ESTIMATIVA]]="",TBL_ArtigosDePapelaria[[#This Row],[REAL]]=""),"",TBL_ArtigosDePapelaria[[#This Row],[ESTIMATIVA]]-TBL_ArtigosDePapelaria[[#This Row],[REAL]]) -> 
B75: Taxas diversas | C75: 100.00 € | E75: =IF(OR(TBL_ArtigosDePapelaria[[#This Row],[ESTIMATIVA]]="",TBL_ArtigosDePapelaria[[#This Row],[REAL]]=""),"",TBL_ArtigosDePapelaria[[#This Row],[ESTIMATIVA]]-TBL_ArtigosDePapelaria[[#This Row],[REAL]]) -> 
B76: TOTAL DE ARTIGOS DE PAPELARIA | C76: =SUBTOTAL(109,TBL_ArtigosDePapelaria[ESTIMATIVA]) -> 500.00 € | D76: =SUBTOTAL(109,TBL_ArtigosDePapelaria[REAL]) -> 0.00 € | E76: =TBL_ArtigosDePapelaria[[#Totals],[ESTIMATIVA]]-TBL_ArtigosDePapelaria[[#Totals],[REAL]] -> 500.00 €
B79: ALIANÇAS | C79: ESTIMATIVA | D79: REAL | E79: DESVIO
B80: Alianças | C80: 1,000.00 € | E80: =IF(OR(TBL_Alianças[[#This Row],[ESTIMATIVA]]="",TBL_Alianças[[#This Row],[REAL]]=""),"",TBL_Alianças[[#This Row],[ESTIMATIVA]]-TBL_Alianças[[#This Row],[REAL]]) -> 
B81: Acessórios para alianças | C81: 100.00 € | E81: =IF(OR(TBL_Alianças[[#This Row],[ESTIMATIVA]]="",TBL_Alianças[[#This Row],[REAL]]=""),"",TBL_Alianças[[#This Row],[ESTIMATIVA]]-TBL_Alianças[[#This Row],[REAL]]) -> 
B82: TOTAL DE ALIANÇAS | C82: =SUBTOTAL(109,TBL_Alianças[ESTIMATIVA]) -> 1,100.00 € | D82: =SUBTOTAL(109,TBL_Alianças[REAL]) -> 0.00 € | E82: =TBL_Alianças[[#Totals],[ESTIMATIVA]]-TBL_Alianças[[#Totals],[REAL]] -> 1,100.00 €
B85: TRANSPORTE | C85: ESTIMATIVA | D85: REAL | E85: DESVIO
B86: Aluguer de carro principal | C86: 100.00 € | E86: =IF(OR(TBL_Transporte[[#This Row],[ESTIMATIVA]]="",TBL_Transporte[[#This Row],[REAL]]=""),"",TBL_Transporte[[#This Row],[ESTIMATIVA]]-TBL_Transporte[[#This Row],[REAL]]) -> 
B87: Aluguer de carro para convidados | C87: 100.00 € | E87: =IF(OR(TBL_Transporte[[#This Row],[ESTIMATIVA]]="",TBL_Transporte[[#This Row],[REAL]]=""),"",TBL_Transporte[[#This Row],[ESTIMATIVA]]-TBL_Transporte[[#This Row],[REAL]]) -> 
B88: Transporte para convidados de fora da cidade | C88: 100.00 € | E88: =IF(OR(TBL_Transporte[[#This Row],[ESTIMATIVA]]="",TBL_Transporte[[#This Row],[REAL]]=""),"",TBL_Transporte[[#This Row],[ESTIMATIVA]]-TBL_Transporte[[#This Row],[REAL]]) -> 
B89: Arrumador | C89: 50.00 € | E89: =IF(OR(TBL_Transporte[[#This Row],[ESTIMATIVA]]="",TBL_Transporte[[#This Row],[REAL]]=""),"",TBL_Transporte[[#This Row],[ESTIMATIVA]]-TBL_Transporte[[#This Row],[REAL]]) -> 
B90: Taxas diversas | C90: 100.00 € | E90: =IF(OR(TBL_Transporte[[#This Row],[ESTIMATIVA]]="",TBL_Transporte[[#This Row],[REAL]]=""),"",TBL_Transporte[[#This Row],[ESTIMATIVA]]-TBL_Transporte[[#This Row],[REAL]]) -> 
B91: TOTAL DE TRANSPORTE | C91: =SUBTOTAL(109,TBL_Transporte[ESTIMATIVA]) -> 450.00 € | D91: =SUBTOTAL(109,TBL_Transporte[REAL]) -> 0.00 € | E91: =TBL_Transporte[[#Totals],[ESTIMATIVA]]-TBL_Transporte[[#Totals],[REAL]] -> 450.00 €
